Cogmind - Beta 17 @@@ ROGUE MODE // 2026.07.08 @ 06:58:53 Player: ChCbias Result: Destroyed by Y-54 Guardian with Flak Gun Performance ------------- Evolutions (3) 1500 Regions Visited (11) 2200 Robots Destroyed (159) 795 Value Destroyed (6643) 6643 Prototype IDs (5) 100 Alien Tech Used (0) 0 Bonus (4002) 4002 TOTAL SCORE: 15240 Bonus ------- High Alert Combat Kills 1348 Follower Combat Kills 54 Entered Garrisons 600 Used RIF Installer 1500 Entered DSFs 500 Cogmind --------- Core Integrity 0/700 Matter 43/300 Energy 47/100 System Corruption 11% Temperature Cool (6) Movement Core (200) Ox3 Location -7/Garrison Parts ------- > --- POWER (1) -------- (None) > --- PROPULSION (4) --- (None) > --- UTILITY (5) ------ Relay Coupler [Grunt] (25) Relay Coupler [Hunter] (5) > --- WEAPON (3) ------- Shock Rifle Gauss Cannon > --- INVENTORY (5) ---- Cryofiber Web Advanced Phase Shifter Lightning Gun Gauss Rifle Gauss Rifle Peak State ------------ > --- POWER ------------ Reinforced Deuterium Engine > --- PROPULSION ------- Carbon-fiber Leg Carbon-fiber Leg Myomer Leg Biometal Leg > --- UTILITY ---------- Advanced Heat Sink High-capacity Storage Unit Signal Interpreter Relay Coupler [Grunt] Relay Coupler [Sentry] > --- WEAPON ----------- Gauss Rifle Flak Gun Remote Datajack > --- INVENTORY -------- Light Nuclear Core Improved Deuterium Engine Aluminum Leg Aluminum Leg Wheel Cryofiber Web Energy Well Sensor Array Target Analyzer Advanced Phase Shifter Hacking Suite Hacking Suite Relay Coupler [Brawler] Relay Coupler [Duelist] Relay Coupler [Hunter] Shock Rifle Shock Rifle Pulse Rifle High-powered Shotgun Scythe [Rating: 57] Favorites ----------- Power Cooled Ion Engine Engine Cooled Ion Engine Power Core Micro Nuclear Core Propulsion Improved Treads Treads Improved Treads Leg Aluminum Leg Wheel Wheel Utility High-capacity Storage Unit Device Advanced Heat Sink Storage High-capacity Storage Unit Processor Signal Interpreter Hackware Hacking Suite Protection Improved Light Armor Plating Weapon Remote Datajack Energy Gun Shock Rifle Energy Cannon Proton Cannon Ballistic Gun Heavy Assault Rifle Ballistic Cannon Gauss Cannon Launcher Advanced EMP Blaster Special Weapon Remote Datajack Slashing Weapon Scythe Build | -11 -10 -9 -9 -8 -8 -8 -7 -7 -7 -7 -7 ------- Run | Yrd Mat Mat Min Mat Gar Mat Fac Gar Fac DSF Gar Slots Evolved 6 | . . 2 . 2 . . 2 . . . . Power . | . . . . . . . . . . . . Propulsion 2 | . . 1 . . . . 1 . . . . Utility 3 | . . 1 . 1 . . 1 . . . . Weapon 1 | . . . . 1 . . . . . . . Parts Attached 122 | 6 14 15 2 11 25 9 5 20 3 3 9 Power 13 | 1 2 1 . . 4 1 1 2 . . 1 Engine 11 | 1 2 1 . . 2 1 1 2 . . 1 Core 2 | . . . . . 2 . . . . . . Reactor . | . . . . . . . . . . . . Propulsion 36 | 2 4 5 . 3 7 4 2 6 1 . 2 Treads 20 | 2 2 5 . 3 3 2 2 . . . 1 Leg 13 | . . . . . 4 2 . 5 1 . 1 Wheel 3 | . 2 . . . . . . 1 . . . Hover . | . . . . . . . . . . . . Flight . | . . . . . . . . . . . . Utility 29 | 1 3 3 1 3 3 1 . 8 1 2 3 Device 6 | . . 1 . 2 2 . . . . 1 . Storage 3 | 1 2 . . . . . . . . . . Processor 2 | . . . 1 . . . . . 1 . . Hackware 13 | . . 1 . 1 . 1 . 7 . 1 2 Protection 5 | . 1 1 . . 1 . . 1 . . 1 Artifact . | . . . . . . . . . . . . Weapon 44 | 2 5 6 1 5 11 3 2 4 1 1 3 Energy Gun 18 | 1 3 3 1 2 4 . 1 1 . . 2 Energy Cannon 3 | . . . . 1 1 1 . . . . . Ballistic Gun 11 | 1 1 1 . 1 2 1 1 3 . . . Ballistic Cannon 3 | . . 1 . 1 . . . . 1 . . Launcher 3 | . . 1 . . 2 . . . . . . Special Weapon 2 | . . . . . . 1 . . . . 1 Impact Weapon . | . . . . . . . . . . . . Slashing Weapon 4 | . 1 . . . 2 . . . . 1 . Piercing Weapon . | . . . . . . . . . . . . Special Melee Weapon . | . . . . . . . . . . . . Unidentified Prototypes 3 | . . 2 . 1 . . . . . . . Corrupted Parts 4 | . . . . . 3 1 . . . . . System Corruption 20 | . . . . . 10 10 . . . . . Parts Lost 64 | . 3 5 . 3 16 5 3 9 . 8 12 Power 5 | . . . . . 2 . . 1 . . 2 Propulsion 21 | . 1 . . 1 6 1 . 4 . 4 4 Utility 9 | . . 1 . . 1 . 1 1 . 2 3 Weapon 29 | . 2 4 . 2 7 4 2 3 . 2 3 Highest Loss Streak 8 | . 2 2 . 2 8 3 3 4 . 7 7 To Critical Strikes 1 | . . . . . . . 1 . . . . Average Backups 17 | 3 13 17 19 18 17 17 15 19 20 17 14 Power 1 | . 1 1 2 2 1 . 1 1 1 1 . Propulsion 2 | 2 4 2 3 2 1 2 2 2 2 1 . Utility 9 | . 3 8 8 9 10 9 8 10 13 12 9 Weapon 3 | . 3 5 6 4 3 3 2 4 3 3 3 Tool/Special . | . . . . . . . . . . . . Unused Backups 41 | . 4 5 1 . 8 2 . 6 2 . 13 Power 3 | . . 1 . . . . . 2 . . . Propulsion 8 | . 4 . . . . 2 . 1 1 . . Utility 23 | . . 3 1 . 7 . . 2 . . 10 Weapon 7 | . . 1 . . 1 . . 1 1 . 3 Tool/Special . | . . . . . . . . . . . . Average Slot Usage (%) 95 | . 94 96 100 97 97 98 96 97 100 87 71 Engine 7 | . 14 11 11 9 5 7 7 6 7 7 6 Core 1 | . . . . . 3 1 . . . . . Treads 12 | . 9 32 33 26 13 2 24 5 . . 5 Leg 12 | . . . . . 12 23 5 23 30 24 5 Wheel 1 | . 16 . . . . . . . . 1 . Device 6 | . . 6 11 15 8 5 10 4 . 6 . Storage 8 | . 14 11 11 9 9 9 7 7 7 7 6 Processor 5 | . . . 3 9 9 9 7 7 7 . . Hackware 9 | . . 2 . 2 9 12 7 14 23 23 16 Protection 3 | . 11 10 7 . . . 2 1 . . 6 Energy Gun 6 | . 11 14 18 13 7 4 3 1 . . 5 Energy Cannon 3 | . . . . 2 6 10 9 2 . . . Ballistic Gun 6 | . 13 3 3 4 5 8 6 8 5 3 . Ballistic Cannon 1 | . . 3 . 5 . . . . 5 4 6 Special Weapon 1 | . . . . . . 1 . 5 7 3 5 Slashing Weapon 2 | . 2 . . . 3 . . 2 4 2 1 Peak Build Rating 57 | 6 13 24 23 30 39 38 40 57 55 57 39 Average Rating 32 | 4 9 19 22 26 32 35 33 47 53 45 35 On Entrance 27 | . 6 13 23 22 29 36 36 33 49 55 27 Avg Prop Armor Cover (%) 11 | . . . . . 7 8 8 21 . 18 6 Naked Turns . | . . . . . . . . . . . . Heaviest Build 89 | 13 89 63 60 59 68 67 75 69 63 64 67 Greatest Support 83 | 40 46 69 69 69 66 32 80 83 78 78 25 Greatest Overweight (x) 18 | . 5 1 . 1 16 3 1 6 . 5 18 Average Overweight (x) . | . 1 . . . . 1 . . . 1 2 Largest Inventory Capacity 25 | 8 25 20 20 20 20 20 20 20 20 20 20 Average Capacity 19 | 6 16 20 20 20 20 20 20 20 20 20 19 Most Carried 20 | 6 20 20 20 20 20 20 20 20 20 19 18 Average Carried 17 | 3 13 17 19 19 18 17 15 19 19 17 14 Final Capacity 20 | 8 20 20 20 20 20 20 20 20 20 20 5 Final Carried 20 | 6 19 20 20 20 20 19 20 20 20 18 5 Class Distribution -------------------- 25% | Mutant 15% | Scavenger-Gunner 11% | Scavenger-Mutant 11% | Bothacker-Mutant 10% | Gunner 9% | Bothacker-Tank 5% | Scavenger-Skirmisher 5% | Bothacker-Gunner 3% | Skirmisher Dominant Class ---------------- Mutant | -10/Materials Mutant | -9/Materials Mutant | -9/Mines Skirmisher | -8/Materials Scavenger-Gunner | -8/Garrison Scavenger-Gunner | -8/Materials Scavenger-Skirmisher | -7/Factory Bothacker-Mutant | -7/Garrison Bothacker-Mutant | -7/Factory Mutant | -7/DSF Bothacker-Tank | -7/Garrison Resources | -11 -10 -9 -9 -8 -8 -8 -7 -7 -7 -7 -7 ----------- Run | Yrd Mat Mat Min Mat Gar Mat Fac Gar Fac DSF Gar Matter Collected 3928 | 225 326 341 28 242 1043 191 194 1105 . 14 219 Remotely . | . . . . . . . . . . . . Salvage Created 6024 | . 508 966 141 618 1744 803 194 891 . . 159 Parts 336 | . 36 53 10 28 97 45 11 45 . . 11 Haulers Intercepted 3 | . 2 1 . . . . . . . . . Recyclers Shooed 6 | . 1 4 . 1 . . . . . . . Parts Field Recycled . | . . . . . . . . . . . . Retrieved Matter . | . . . . . . . . . . . . Parts Self-Destructed . | . . . . . . . . . . . . Prevented . | . . . . . . . . . . . . Parts Restored . | . . . . . . . . . . . . Kills | -11 -10 -9 -9 -8 -8 -8 -7 -7 -7 -7 -7 ------- Run | Yrd Mat Mat Min Mat Gar Mat Fac Gar Fac DSF Gar Combat Hostiles Destroyed 137 | . 10 22 4 11 41 17 3 24 . . 5 Melee 7 | . 1 . . . 3 . 2 . . . 1 Guns 72 | . 9 16 4 3 15 6 . 19 . . . Cannons 31 | . . 2 . 7 6 7 1 4 . . 4 AOE 25 | . . 3 . 1 16 4 . 1 . . . Classes Destroyed 15 | . 6 4 1 . 2 . 1 . . . 1 Worker 8 | . 2 2 . 1 . 3 . . . . . Builder 1 | . . . . . . . 1 . . . . Hauler 3 | . 2 1 . . . . . . . . . Recycler 2 | . . 1 . 1 . . . . . . . Mechanic 2 | . . 1 . 1 . . . . . . . Operator 4 | . 1 2 . . . 1 . . . . . Watcher 2 | . 1 . . . 1 . . . . . . Swarmer 34 | . 2 7 2 . 13 3 . 7 . . . Grunt 66 | . 8 11 1 8 13 10 2 13 . . . Brawler 6 | . . . 1 . 2 2 1 . . . . Duelist 4 | . . 1 . . 3 . . . . . . Sentry 16 | . . 3 . 3 3 2 . 4 . . 1 Specialist 1 | . . . . . 1 . . . . . . Hunter 1 | . . . . . . . . . . . 1 Programmer 9 | . . . . . 6 . . . . . 3 Best Kill Streak 14 | . 3 9 3 3 8 14 3 5 . . 1 Combat Bots Only 12 | . 3 5 3 2 8 12 3 5 . . 1 Max Kills in Single Turn 6 | . 2 4 1 2 3 6 1 1 . . 1 Gunslinging 1 | . . 1 . . . . . . . . . Exploded 4 | . . 3 . 1 3 4 . 1 . . . Melee 1 | . 1 . . . 1 . 1 . . . 1 Uniques/NPCs Destroyed . | . . . . . . . . . . . . Combat | -11 -10 -9 -9 -8 -8 -8 -7 -7 -7 -7 -7 -------- Run | Yrd Mat Mat Min Mat Gar Mat Fac Gar Fac DSF Gar Hostile Shots Fired 1005 | . 60 107 14 66 240 61 29 248 6 44 130 Missed 297 | . 16 22 3 23 67 11 8 99 1 14 33 Hits 708 | . 44 85 11 43 173 50 21 149 5 30 97 Melee 15 | . . 8 2 . 4 . 1 . . . . Projectile 693 | . 44 77 9 43 169 50 20 149 5 30 97 Critical Strikes 30 | . 1 5 . 2 9 1 1 5 . 1 5 Part Disruptions 1 | . . . . . 1 . . . . . . Damage Taken 10049 | . 521 1114 152 622 2617 920 348 1928 26 664 1137 Core 1338 | . 38 92 9 47 344 104 . 249 . 156 299 Absorbed by Shields 10 | . . . . . . . . 10 . . . Redirected to Shielding 8 | . 8 . . . . . . . . . . Regen/Repaired (Parts) 126 | . . 126 . . . . . . . . . Core Remaining (%) 67 | 100 84 . 74 . . 10 . . . . . Volleys Fired 416 | . 54 57 6 39 93 39 5 91 2 4 26 Largest 3 | . 2 2 2 3 3 3 3 3 1 1 2 Hottest 174 | . 90 110 88 156 174 153 165 151 5 25 103 Shots Fired 854 | . 105 114 12 110 220 74 11 162 2 4 40 Gun 620 | . 105 106 12 77 143 44 3 114 . 1 15 Cannon 159 | . . 8 . 33 46 22 8 22 . . 20 Launcher 32 | . . . . . 31 1 . . . . . Special 43 | . . . . . . 7 . 26 2 3 5 Kinetic 404 | . 92 35 6 51 60 34 2 103 . 1 20 Thermal 228 | . 2 39 6 46 91 . 6 28 . . 10 Explosive . | . . . . . . . . . . . . Electromagnetic 179 | . 11 40 . 13 69 33 3 5 . . 5 Robot Hit Streak 21 | . 10 21 7 14 12 7 2 13 1 1 12 Robot Miss Streak 17 | . 4 7 2 6 7 3 2 17 1 2 2 Penetration Max 1 | . . . . . . . . 1 . . . Secondary Targets 12 | . 2 4 1 . 1 . . 4 . . . Max Gunslinging Chain 1 | . 1 1 1 . 1 . . 1 . . . Shots Hit Robots 571 | . 74 81 8 74 116 50 12 114 1 2 39 Core Hits 286 | . 31 43 6 27 65 30 5 71 . 1 7 Critical Kills . | . . . . . . . . . . . . Critical Parts Destroyed 1 | . 1 . . . . . . . . . . Critical Strikes 18 | . 1 4 . 3 3 . 3 . . . 4 Burn 6 | . . 3 . 1 2 . . . . . . Destroy 1 | . 1 . . . . . . . . . . Blast 7 | . . 1 . 2 . . . . . . 4 Sever 4 | . . . . . 1 . 3 . . . . Melee Attacks 63 | . 6 . . . 18 3 11 8 1 4 12 Impact . | . . . . . . . . . . . . Slashing 63 | . 6 . . . 18 3 11 8 1 4 12 Piercing . | . . . . . . . . . . . . Sneak Attacks . | . . . . . . . . . . . . Combat Hostiles . | . . . . . . . . . . . . Follow-up Attacks . | . . . . . . . . . . . . Damage Inflicted 12186 | . 819 1479 142 1366 3355 2077 323 1756 . 9 860 Guns 6314 | . 747 1181 142 831 1142 624 . 1483 . 9 155 Cannons 2421 | . . 106 . 405 681 389 108 273 . . 459 Explosions 2650 | . . 192 . 130 1361 967 . . . . . Melee 792 | . 71 . . . 163 97 215 . . . 246 Ramming 9 | . 1 . . . 8 . . . . . . Kinetic 4409 | . 619 395 94 553 447 458 . 1375 . 9 459 Thermal 3961 | . 13 684 48 651 1211 810 53 344 . . 147 Explosive . | . . . . . . . . . . . . Electromagnetic 3015 | . 115 400 . 162 1526 712 55 37 . . 8 Impact . | . . . . . . . . . . . . Slashing 792 | . 71 . . . 163 97 215 . . . 246 Piercing . | . . . . . . . . . . . . Highest Corruption 34 | . 3 . . . 23 34 4 4 4 4 11 Average Corruption 10 | . 1 . . . 17 23 4 4 4 4 6 Corruption Purged . | . . . . . . . . . . . . Corruption Blocked . | . . . . . . . . . . . . Effects 243 | . 7 . . . 120 38 6 40 3 5 24 Message Errors 45 | . . . . . 26 4 2 5 1 1 6 Matter Fused 48 | . 2 . . . 19 7 . 10 . 2 8 Heat Flow Errors 46 | . 2 . . . 25 4 2 8 . 1 4 Energy Discharges 32 | . . . . . 15 4 2 8 1 . 2 Parts Rejected 5 | . . . . . 3 2 . . . . . Parts Fused 2 | . . . . . 1 . . 1 . . . Data Loss (minor) 33 | . 2 . . . 15 7 . 5 . 1 3 Data Loss (major) 7 | . . . . . 3 3 . . 1 . . Misfires 9 | . . . . . 5 1 . 3 . . . Alerts 1 | . . . . . 1 . . . . . . Misdirections 3 | . . . . . 2 1 . . . . . Weapon Failures 12 | . 1 . . . 5 5 . . . . 1 Overload Shots . | . . . . . . . . . . . . Overflow Damage 188 | . . 28 . . 44 112 . . . . 4 Projectiles 34 | . . . . . 2 32 . . . . . Explosions 150 | . . 28 . . 42 80 . . . . . Melee 4 | . . . . . . . . . . . 4 Knockbacks 11 | . . 1 . 7 . . . . . . 3 Impact . | . . . . . . . . . . . . Kinetic 11 | . . 1 . 7 . . . . . . 3 Secondary . | . . . . . . . . . . . . Self-Inflicted Damage 308 | . . 34 . . 141 133 . . . . . Shots 13 | . . 1 . . 9 3 . . . . . Rammed 2 | . 1 . . . 1 . . . . . . Targets Rammed 2 | . 1 . . . 1 . . . . . . Kicked . | . . . . . . . . . . . . Crushed . | . . . . . . . . . . . . Highest Temperature 493 | . 169 315 8 120 265 493 178 265 . 114 237 Average Temperature 85 | . 30 93 5 37 68 168 45 88 . 69 95 Received Heat Transfer 3504 | . 303 234 24 396 981 387 180 837 . 36 126 Effects 12 | . . . . . 1 8 . 3 . . . Shutdowns 2 | . . . . . . 2 . . . . . Energy Bleed 3 | . . . . . 1 1 . 1 . . . Interference 5 | . . . . . . 3 . 2 . . . Matter Decay 2 | . . . . . . 2 . . . . . Siege Activations . | . . . . . . . . . . . . Martial Activations . | . . . . . . . . . . . . Shielding Activations . | . . . . . . . . . . . . Robots Disrupted 2 | . . 1 . . 1 . . . . . . Combat Hostiles 2 | . . 1 . . 1 . . . . . . Robots Corrupted 2 | . . 1 . . 1 . . . . . . Combat Hostiles 2 | . . 1 . . 1 . . . . . . Parts Fried 5 | . . 1 . . 3 1 . . . . . Impact Corruptions . | . . . . . . . . . . . . Robots Melted . | . . . . . . . . . . . . Combat Hostiles . | . . . . . . . . . . . . Parts Melted 10 | . . 3 . . 4 . . 3 . . . Heat Transferred 7115 | . 37 1582 111 1421 2404 450 111 703 . . 296 Parts Sabotaged . | . . . . . . . . . . . . Parts Stolen . | . . . . . . . . . . . . Parts Stripped . | . . . . . . . . . . . . Power Chain Reactions 11 | . . 1 . 1 7 2 . . . . . Alert | -11 -10 -9 -9 -8 -8 -8 -7 -7 -7 -7 -7 ------- Run | Yrd Mat Mat Min Mat Gar Mat Fac Gar Fac DSF Gar Maximum Alert Level 5 | . . 1 1 . 5 4 2 4 3 2 1 Low Security (%) 24 | 100 100 73 65 100 8 . . . . . . Level 1 20 | . . 26 34 . 20 . . 14 . 1 100 Level 2 15 | . . . . . 6 . 100 35 35 98 . Level 3 11 | . . . . . 13 37 . 15 64 . . Level 4 18 | . . . . . 23 62 . 34 . . . Level 5 8 | . . . . . 27 . . . . . . High Security . | . . . . . . . . . . . . Max Security . | . . . . . . . . . . . . Peak Influence 2281 | . 100 282 231 114 2281 1376 591 1444 758 461 341 Initial 1111 | . . 11 106 60 65 1111 591 301 758 461 294 Average 677 | . 38 146 184 57 1055 1179 518 819 709 424 325 Influence Increases 5928 | . 350 637 150 337 2376 550 75 1233 31 32 157 Destroy 0b10 Robot/C 2820 | . 200 440 120 220 820 340 60 520 . . 100 Destroy 0b10 Robot/NC 110 | . 30 35 . 15 5 20 5 . . . . Destroy Leader 428 | . 56 112 20 50 40 70 10 40 . . 30 Allied During Kill 7 | . . . 5 . . . . 2 . . . Successful Hack 109 | . 18 33 5 3 12 6 . 16 16 . . Disable Machine 150 | . 15 . . . 15 90 . . 15 . 15 Anti-Garrison Action 1850 | . . . . . 1250 . . 600 . . . Destroy Structure 169 | . 1 2 . 4 114 24 . 10 . 2 12 Lose Combat Pursuer 285 | . 30 15 . 45 120 . . 45 . 30 . Influence Decreases 5617 | . 322 390 269 392 196 1530 946 219 816 298 239 Entered New Map 3310 | . . 17 169 96 36 1170 710 129 686 198 99 Time Decay 1617 | . 302 323 100 246 . 310 206 . 130 . . Lost Part 630 | . 20 50 . 30 160 50 30 90 . 80 120 Lost Ally 60 | . . . . 20 . . . . . 20 20 Squads Dispatched 18 | . 2 6 . 2 . 5 1 . 1 1 . Investigation 7 | . 2 3 . 1 . 1 . . . . . Extermination 1 | . . . . . . . . . 1 . . Reinforcement 7 | . . 3 . . . 3 . . . 1 . Assault 2 | . . . . . . 1 1 . . . . Garrison 1 | . . . . 1 . . . . . . . Intercept . | . . . . . . . . . . . . Searches Triggered . | . . . . . . . . . . . . Construction Impeded . | . . . . . . . . . . . . Haulers Reinforced . | . . . . . . . . . . . . Active Scanning Responses . | . . . . . . . . . . . . Cargo Convoy Interrupts . | . . . . . . . . . . . . Stealth | -11 -10 -9 -9 -8 -8 -8 -7 -7 -7 -7 -7 --------- Run | Yrd Mat Mat Min Mat Gar Mat Fac Gar Fac DSF Gar Distress Signals 9 | . 2 4 . 1 . 2 . . . . . Communications Jammed . | . . . . . . . . . . . . Distress Signals . | . . . . . . . . . . . . Times Spotted 223 | . 21 35 7 18 55 27 3 38 1 6 12 Peak Tracking Total 8 | . 6 8 4 5 6 8 3 6 1 3 4 Tactical Retreats 17 | . 2 1 . 2 7 . . 3 . 2 . Traps | -11 -10 -9 -9 -8 -8 -8 -7 -7 -7 -7 -7 ------- Run | Yrd Mat Mat Min Mat Gar Mat Fac Gar Fac DSF Gar Traps Triggered 18 | . 1 . . 2 6 . . 6 . . 3 Indirectly 3 | . . . . . 3 . . . . . . Trap Hack Attempts . | . . . . . . . . . . . . Triggered . | . . . . . . . . . . . . Disarmed . | . . . . . . . . . . . . Reprogrammed . | . . . . . . . . . . . . Reused . | . . . . . . . . . . . . Traps Extracted . | . . . . . . . . . . . . Installed . | . . . . . . . . . . . . Triggered . | . . . . . . . . . . . . Most Traps Carried 1 | . . . 1 1 1 1 . . . . . Machines | -11 -10 -9 -9 -8 -8 -8 -7 -7 -7 -7 -7 ---------- Run | Yrd Mat Mat Min Mat Gar Mat Fac Gar Fac DSF Gar Machines Disabled 19 | . 1 . . . 4 6 . 6 1 . 1 Max in Single Turn 3 | . 1 . . . 1 3 . 1 1 . 1 Garrison Relay 6 | . . . . . 1 . . 5 . . . Machines Repaired . | . . . . . . . . . . . . Machines Dismantled . | . . . . . . . . . . . . Machines Sabotaged . | . . . . . . . . . . . . Overloaded Fab Kills . | . . . . . . . . . . . . Hacking | -11 -10 -9 -9 -8 -8 -8 -7 -7 -7 -7 -7 --------- Run | Yrd Mat Mat Min Mat Gar Mat Fac Gar Fac DSF Gar Machines Accessed 30 | . 7 7 1 2 4 4 1 2 2 . . Terminals 25 | . 7 6 1 1 4 2 . 2 2 . . Fabricators . | . . . . . . . . . . . . Repair Stations 2 | . . 1 . . . 1 . . . . . Recycling Units . | . . . . . . . . . . . . Scanalyzers 1 | . . . . . . 1 . . . . . Garrison Access 2 | . . . . 1 . . 1 . . . . Total Hacks 91 | . 26 26 1 4 7 15 1 7 4 . . Successful 41 | . 9 13 1 1 2 10 1 1 3 . . Failed 50 | . 17 13 . 3 5 5 . 6 1 . . Catastrophic 11 | . 4 3 . 2 1 1 . . . . . Database Lockouts . | . . . . . . . . . . . . Manual 24 | . 7 15 . . . 1 . . 1 . . Terminals 77 | . 26 24 1 3 7 5 . 7 4 . . Fabricators . | . . . . . . . . . . . . Repair Stations 4 | . . 2 . . . 2 . . . . . Recycling Units . | . . . . . . . . . . . . Scanalyzers 8 | . . . . . . 8 . . . . . Garrison Access 2 | . . . . 1 . . 1 . . . . Terminal Hacks 24 | . 7 9 1 . 2 1 . 1 3 . . Record 1 | . . 1 . . . . . . . . . Part Schematic 2 | . . 1 . . . . . . 1 . . Robot Analysis 3 | . 2 1 . . . . . . . . . Prototype ID Bank 1 | . 1 . . . . . . . . . . Open DSF 1 | . . . . . . . . . 1 . . Emergency Access Points 2 | . 1 1 . . . . . . . . . Terminal Index 1 | . 1 . . . . . . . . . . Fabricator Index 1 | . . . . . . . . . 1 . . Alert Level 2 | . 1 1 . . . . . . . . . Locate Traps 1 | . . 1 . . . . . . . . . Security Status 1 | . . 1 . . . . . . . . . Registered Components 1 | . . 1 . . . . . . . . . Zone Layout 4 | . 1 1 1 . . 1 . . . . . Garrison Registry 1 | . . . . . 1 . . . . . . Patrol Navigation 1 | . . . . . 1 . . . . . . Security Stations 1 | . . . . . . . . 1 . . . Fabricator Hacks . | . . . . . . . . . . . . Repair Station Hacks 4 | . . 2 . . . 2 . . . . . Scan Component 2 | . . 1 . . . 1 . . . . . Repair 2 | . . 1 . . . 1 . . . . . Recycling Unit Hacks . | . . . . . . . . . . . . Scanalyzer 7 | . . . . . . 7 . . . . . Insert Component 2 | . . . . . . 2 . . . . . Analyze 2 | . . . . . . 2 . . . . . Retrieve Study 3 | . . . . . . 3 . . . . . Garrison Access Hacks 2 | . . . . 1 . . 1 . . . . Unlock Access 2 | . . . . 1 . . 1 . . . . Unauthorized Hacks 4 | . 2 2 . . . . . . . . . Terminals 4 | . 2 2 . . . . . . . . . Botnet 4 | . 2 2 . . . . . . . . . Fabricators . | . . . . . . . . . . . . Repair Stations . | . . . . . . . . . . . . Recycling Units . | . . . . . . . . . . . . Scanalyzers . | . . . . . . . . . . . . Garrison Access . | . . . . . . . . . . . . Data Cores Recovered . | . . . . . . . . . . . . Used . | . . . . . . . . . . . . Hacking Detections 24 | . 7 6 1 1 2 3 1 2 1 . . Full Trace Events 11 | . 4 2 . 1 2 1 . 1 . . . Feedback Events 3 | . 1 1 . . . 1 . . . . . Corruption 2 | . 1 . . . . 1 . . . . . Hackware Fried 1 | . . 1 . . . . . . . . . Feedback Blocked . | . . . . . . . . . . . . Robot Schematics Acquired . | . . . . . . . . . . . . Robots Built . | . . . . . . . . . . . . Authchips . | . . . . . . . . . . . . Time . | . . . . . . . . . . . . Total Robot Build Rating . | . . . . . . . . . . . . Part Schematics Acquired 4 | . . 1 . . . 2 . . 1 . . Parts Built . | . . . . . . . . . . . . Authchips . | . . . . . . . . . . . . Time . | . . . . . . . . . . . . Total Part Build Rating . | . . . . . . . . . . . . Part Studies Acquired 3 | . . . . . . 3 . . . . . Parts Repaired 1 | . . 1 . . . . . . . . . Time 68 | . . 32 . . . 36 . . . . . Parts Recycled . | . . . . . . . . . . . . Recycled Matter . | . . . . . . . . . . . . Retrieved Matter . | . . . . . . . . . . . . Retrieved Components . | . . . . . . . . . . . . Parts Scanalyzed 2 | . . . . . . 2 . . . . . Part Schematics Acquired 2 | . . . . . . 2 . . . . . Parts Damaged . | . . . . . . . . . . . . Bothacking | -11 -10 -9 -9 -8 -8 -8 -7 -7 -7 -7 -7 ------------ Run | Yrd Mat Mat Min Mat Gar Mat Fac Gar Fac DSF Gar Used RIF Installer 3 | . . . . . 2 . . 1 . . . Patrol Navigation 1 | . . . . . 1 . . . . . . Program Shield 1 | . . . . . . . . 1 . . . Robots Hacked 25 | . . . . . . 3 . 17 1 1 3 Non-combat 2 | . . . . . . 1 . . 1 . . Combat 23 | . . . . . . 2 . 17 . 1 3 Robot Hacks Applied 26 | . . . . . . 4 . 17 1 1 3 parse_system 1 | . . . . . . 1 . . . . . no_distress 1 | . . . . . . . . . 1 . . find_shortcuts 1 | . . . . . . . . 1 . . . find_garrison 1 | . . . . . . 1 . . . . . scatter_targeting 1 | . . . . . . . . 1 . . . link_complan 1 | . . . . . . . . 1 . . . disrupt_area 1 | . . . . . . . . 1 . . . overload_power 6 | . . . . . . . . 6 . . . amplify_resonance 4 | . . . . . . . . 3 . . 1 disable_weapons 5 | . . . . . . 2 . 3 . . . reboot_system 1 | . . . . . . . . . . . 1 overwrite_iff 1 | . . . . . . . . 1 . . . formatsys_high 2 | . . . . . . . . . . 1 1 Relay Couplers Released 24 | . . . . . 3 . . 21 . . . Machine Destruction 24 | . . . . . 3 . . 21 . . . Attached 11 | . . . . . . 1 . 7 . 1 2 Fabnet Peak Effective % . | . . . . . . . . . . . . Robots Rewired . | . . . . . . . . . . . . Allies Hacked . | . . . . . . . . . . . . Hacks Repelled . | . . . . . . . . . . . . Allies | -11 -10 -9 -9 -8 -8 -8 -7 -7 -7 -7 -7 -------- Run | Yrd Mat Mat Min Mat Gar Mat Fac Gar Fac DSF Gar Total Allies 4 | . . . 1 . . . . 1 . 1 1 Largest Group 1 | . . . 1 1 . . . 1 . 1 1 Highest-Rated Group 32 | . . . 31 31 . . . 32 . 24 32 Highest-Rated Ally 32 | . . . 31 31 . . . 32 . 24 32 Total Orders . | . . . . . . . . . . . . Ally Attacks 12 | . . . 7 3 . . . 2 . . . Total Damage 152 | . . . 62 44 . . . 46 . . . Kills 4 | . . . 2 . . . . 2 . . . Allies Corrupted . | . . . . . . . . . . . . Allies Melted . | . . . . . . . . . . . . Intel | -11 -10 -9 -9 -8 -8 -8 -7 -7 -7 -7 -7 ------- Run | Yrd Mat Mat Min Mat Gar Mat Fac Gar Fac DSF Gar Active Infowar (turns) 1074 | . . . . 372 . . 264 303 . 135 . Sensors 1074 | . . . . 372 . . 264 303 . 135 . Robot Analysis Total 3 | . 2 1 . . . . . . . . . Derelict Logs Recovered . | . . . . . . . . . . . . Drone Launches . | . . . . . . . . . . . . Drone Recoveries . | . . . . . . . . . . . . Exploration | -11 -10 -9 -9 -8 -8 -8 -7 -7 -7 -7 -7 ------------- Run | Yrd Mat Mat Min Mat Gar Mat Fac Gar Fac DSF Gar Turns Passed 10377 | 79 955 824 206 526 3303 682 428 2168 277 154 775 Spaces Moved 5115 | 45 569 345 113 210 1471 198 195 1464 232 85 188 Core 24 | 6 . . . . 1 . . . . . 17 Treads 2056 | 39 129 345 113 210 763 . 195 127 . . 135 Legs 2443 | . . . . . 707 198 . 1210 232 60 36 Wheels 592 | . 440 . . . . . . 127 . 25 . Hover . | . . . . . . . . . . . . Flight . | . . . . . . . . . . . . Fastest Speed 50 | 50 105 160 160 160 160 171 160 110 110 113 50 Average Speed 162 | 145 125 160 160 166 191 247 179 122 112 141 344 Slowest Speed 950 | 160 240 240 160 245 850 330 240 240 113 252 950 Overloaded Moves . | . . . . . . . . . . . . Propulsion Burnouts . | . . . . . . . . . . . . Robots Hopped . | . . . . . . . . . . . . Potential Cave-ins . | . . . . . . . . . . . . Cave-ins Triggered . | . . . . . . . . . . . . Exploration Rate (%) 38 | 3 91 36 31 19 94 29 3 87 4 54 15 Regions Visited 11 Branch Regions 1 Pre-discovered Areas 1 | . . . 1 . . . . . . . . Known Exits Taken 5 | . . . 1 1 . 1 1 . 1 . . Unknown Exits Taken 3 | 1 1 1 . . . . . . . . . Scrap Searched 1 | . . . 1 . . . . . . . . Spaces Dug 4 | . . . . . . . . . . 2 2 Terrain Destroyed 52 | . . 2 . 2 22 21 1 . . 2 2 Melee 4 | . . . . . . . . . . 2 2 Projectile 3 | . . . . . 1 1 1 . . . . AOE 45 | . . 2 . 2 21 20 . . . . . Terrain Rammed . | . . . . . . . . . . . . Walls Destroyed . | . . . . . . . . . . . . Machines Disabled . | . . . . . . . . . . . . Actions | -11 -10 -9 -9 -8 -8 -8 -7 -7 -7 -7 -7 --------- Run | Yrd Mat Mat Min Mat Gar Mat Fac Gar Fac DSF Gar Total 6277 | 56 705 502 126 299 1732 316 248 1682 245 111 255 Wait 265 | . 26 49 3 27 56 47 12 37 . 6 2 Move 5106 | 44 568 344 112 210 1470 197 195 1463 231 84 188 Hop . | . . . . . . . . . . . . Pick Up 103 | 6 22 18 1 2 20 7 8 11 2 2 4 Fast Attach 61 | 6 5 4 1 8 12 3 2 11 1 1 7 Attach 52 | . 2 9 . 5 10 5 6 6 . 4 5 Detach 14 | . 1 1 . 2 1 . 2 2 . 2 3 Swap 94 | . 8 7 1 2 32 11 2 21 4 2 4 Drop 74 | . 12 13 2 4 14 4 5 14 4 2 . Fire 416 | . 54 57 6 39 93 39 5 91 2 4 26 Melee 63 | . 6 . . . 18 3 11 8 1 4 12 Ram . | . . . . . . . . . . . . Kick . | . . . . . . . . . . . . Crush 2 | . 1 . . . 1 . . . . . . Escape Stasis 25 | . . . . . 3 . . 18 . . 4 Rewire 2 | . . . . . 2 . . . . . . Trap . | . . . . . . . . . . . . Miscellaneous . | . . . . . . . . . . . . Route ------- -11/Scrapyard -10/Materials (discovered 5 exits: *Mat x3 / [*Min] / [*Sub]) -9/Materials (discovered 3 exits: *Min x2 / [*Sto]) -9/Mines -8/Materials -8/Garrison (discovered 3 exits: *Mat x3) -8/Materials -7/Factory -7/Garrison (discovered 3 exits: *Fac x3) -7/Factory -7/DSF -7/Garrison History --------- Turn | Location | Event 22 | -11/Scrapyard | Discovered new exit (range 16) 80 | -11/Scrapyard | Entered Materials 311 | -10/Materials | Build established: Mutant 369 | -10/Materials | Discovered new exit (range 9) 502 | -10/Materials | Discovered new exit (range 13) 667 | -10/Materials | Discovered new exit (range 6) 770 | -10/Materials | Discovered new exit (range 10) 810 | -10/Materials | Discovered new exit (range 13) 1035 | -10/Materials | Entered another Materials area 1035 | -9/Materials | Evolved 2 slots: Propulsion x1, Utility x1 1286 | -9/Materials | Hacking Suite fried by hacking feedback 1346 | -9/Materials | Discovered new exit (range 10) 1519 | -9/Materials | Discovered new exit (range 15) 1812 | -9/Materials | Repaired Hrd. Light Armor Plating 1836 | -9/Materials | Discovered new exit (range 5) 1859 | -9/Materials | Entered Mines 1866 | -9/Mines | Escorted by a lone wolf Derelict 1886 | -9/Mines | Learned location of Storage (-9) 1888 | -9/Mines | Met a Derelict bent on vengeance 1972 | -9/Mines | Found a hidden stash of uninstalled traps 2001 | -9/Mines | Discovered new exit (range 8) 2010 | -9/Mines | Identified exit to Materials 2065 | -9/Mines | Entered Materials 2065 | -8/Materials | Accompanied by 1 ally 2065 | -8/Materials | Evolved 2 slots: Utility x1, Weapon x1 2380 | -8/Materials | Build established: Skirmisher 2532 | -8/Materials | Garrison activated, responded to threat 2591 | -8/Materials | Identified exit to Garrison 2591 | -8/Materials | Entered Garrison 2661 | -8/Garrison | Triggered checkpoint 2777 | -8/Garrison | Triggered checkpoint 2869 | -8/Garrison | Build established: Scavenger-Gunner 3253 | -8/Garrison | Triggered checkpoint 3342 | -8/Garrison | Lost 3 parts (1n2w) 3405 | -8/Garrison | Discovered new exit (range 9) 3416 | -8/Garrison | Identified exit to Materials 3514 | -8/Garrison | Triggered checkpoint 3518 | -8/Garrison | Triggered checkpoint 3538 | -8/Garrison | System corruption reached 10% 3573 | -8/Garrison | Lost 3 parts (1p1n1w) 3653 | -8/Garrison | Destroyed 8 combat bots 3761 | -8/Garrison | Discovered exit to Materials (range 15) 3808 | -8/Garrison | Build established: Gunner 4217 | -8/Garrison | Discovered exit to Materials (range 12) 4281 | -8/Garrison | Triggered checkpoint 4321 | -8/Garrison | Core integrity fell below 50% 4349 | -8/Garrison | Lost 8 parts (1p3n1u3w) 4439 | -8/Garrison | Installed Relay Interface Framework 4621 | -8/Garrison | Build established: Scavenger-Mutant 4645 | -8/Garrison | Triggered checkpoint 5185 | -8/Garrison | Discovered exit to Materials (range 44) 5185 | -8/Garrison | Discovered exit to Materials (range 63) 5185 | -8/Garrison | Discovered exit to Materials (range 48) 5373 | -8/Garrison | Build established: Scavenger-Gunner 5423 | -8/Garrison | Expanded RIF knowledge: Patrol Navigation 5463 | -8/Garrison | Garrison Relay disabled 5751 | -8/Garrison | Build established: Scavenger-Mutant 5894 | -8/Garrison | Entered Materials 6211 | -8/Materials | Core integrity fell below 20% 6294 | -8/Materials | First assault squad dispatched 6364 | -8/Materials | Lost 3 parts (1n2w) 6394 | -8/Materials | Destroyed 12 combat bots 6507 | -8/Materials | Discovered new exit (range 17) 6572 | -8/Materials | Identified exit to Factory 6576 | -8/Materials | System corruption reached 30% 6576 | -8/Materials | Entered Factory 6576 | -7/Factory | Evolved 2 slots: Propulsion x1, Utility x1 6735 | -7/Factory | Lost 3 parts (1u2w) 6976 | -7/Factory | First assault squad dispatched 7004 | -7/Factory | Identified exit to Garrison 7004 | -7/Factory | Entered Garrison 7025 | -7/Garrison | Build established: Scavenger-Skirmisher 7198 | -7/Garrison | Triggered checkpoint 7309 | -7/Garrison | Garrison Relay disabled 7326 | -7/Garrison | Triggered checkpoint 7384 | -7/Garrison | Discovered new exit (range 10) 7397 | -7/Garrison | Identified exit to Factory 7419 | -7/Garrison | Expanded RIF knowledge: Program Shield 7624 | -7/Garrison | Triggered checkpoint 7740 | -7/Garrison | Build established: Bothacker-Gunner 7787 | -7/Garrison | Discovered exit to Factory (range 10) 7804 | -7/Garrison | Triggered checkpoint 7841 | -7/Garrison | Learned Factory security intel 7860 | -7/Garrison | Garrison Relay disabled 7947 | -7/Garrison | Triggered checkpoint 8118 | -7/Garrison | Discovered exit to Factory (range 14) 8180 | -7/Garrison | Garrison Relay disabled 8190 | -7/Garrison | Garrison Relay disabled 8469 | -7/Garrison | Lost 4 parts (1p1n1u1w) 8498 | -7/Garrison | Triggered checkpoint 8864 | -7/Garrison | Build established: Bothacker-Mutant 8922 | -7/Garrison | Triggered checkpoint 8934 | -7/Garrison | Garrison Relay disabled 9172 | -7/Garrison | Entered Factory 9260 | -7/Factory | Identified exit to DSF 9449 | -7/Factory | Entered DSF 9507 | -7/DSF | Additional patrols routed to DSF 9577 | -7/DSF | Discovered new exit (range 16) 9601 | -7/DSF | Core integrity fell below 50% 9603 | -7/DSF | Entered Garrison 9631 | -7/Garrison | Lost 7 parts (4n1u2w) 9737 | -7/Garrison | Lost 3 parts (1p2n) 10061 | -7/Garrison | Build established: Bothacker-Tank 10335 | -7/Garrison | Core integrity fell below 20% 10369 | -7/Garrison | System corruption reached 10% 10378 | -7/Garrison | Destroyed by Y-54 Guardian with Flak Gun Last Messages --------------- 10242_ PE:L4C